[Event "NY Presidents Day Schiller-C 2024"]
[Site "New York"]
[Date "2024.02.16"]
[Round "2.4"]
[White "Pagan, Jonathan"]
[Black "Andrianov, Nikolai"]
[Result "0-1"]
[ECO "B00"]
[WhiteElo "2018"]
[BlackElo "2266"]
[Annotator "RC"]
[PlyCount "194"]
[EventDate "2024.02.14"]
[EventType "schev"]
[EventCountry "USA"]
[SourceTitle "playchess.com"]
[Source "ChessBase"]
[SourceQuality "1"]
[TimeControl "5400+30"]

1. d4 {[%emt 0:00:03]} b5 {[%emt 0:02:16]} 2. e4 {[%emt 0:02:00]} Bb7 {[%emt 0:01:07]} 3. Bd3 {[%emt 0:02:47]} e6 {[%emt 0:02:01]} 4. Nf3 {[%emt 0:00:28]} a6 {[%emt 0:05:32]} 5. a4 {[%emt 0:06:09]} b4 {[%emt 0:00:30]} 6. c4 {[%emt 0:00:35]} bxc3 {[%emt 0:02:11]} 7. Nxc3 {[%emt 0:00:45]} Nf6 {[%emt 0:00:17]} 8. O-O {[%emt 0:03:01]} Be7 {[%emt 0:00:40]} 9. Re1 {[%emt 0:04:41]} O-O {[%emt 0:01:04]} 10. Qc2 {[%emt 0:11:09]} Nc6 {[%emt 0:04:20]} 11. Qe2 {[%emt 0:02:19]} Nb4 {[%emt 0:01:05]} 12. Bb1 {[%emt 0:00:18]} a5 {[%emt 0:11:18]} 13. Bg5 {[%emt 0:07:03]} Ba6 {[%emt 0:05:33]} 14. Qd2 {[%emt 0:02:33]} d6 {[%emt 0:01:16]} 15. Na2 {[%emt 0:02:35]} Rb8 {[%emt 0:08:50]} 16. Nxb4 {[%emt 0:03:43]} Rxb4 {[%emt 0:00:15]} 17. Qc2 {[%emt 0:07:58]} Rc4 {[%emt 0:03:51]} 18. Qd1 {[%emt 0:01:00]} Rb4 {[%emt 0:00:35]} 19. b3 {[%emt 0:03:05]} c5 {[%emt 0:02:49]} 20. Bd2 {[%emt 0:14:26]} Rb7 {[%emt 0:00:24]} 21. Qc2 {[%emt 0:01:10]} g6 {[%emt 0:05:39]} 22. Qc3 {[%emt 0:02:01]} d5 {[%emt 0:03:39]} 23. e5 {[%emt 0:03:26]} Ne4 {[%emt 0:02:15]} 24. Bxe4 {[%emt 0:00:25]} dxe4 {[%emt 0:00:05]} 25. Rxe4 {[%emt 0:00:18]} Qd5 {[%emt 0:00:43]} 26. Rae1 {[%emt 0:06:30]} Rxb3 {[%emt 0:00:23]} 27. Qxa5 {[%emt 0:00:44]} Bd3 {[%emt 0:00:12]} 28. R4e3 {[%emt 0:03:28]} Ra8 {[%emt 0:00:23]} 29. Qc7 {[%emt 0:00:17]} Rb7 {[%emt 0:00:21]} 30. Qxb7 {[%emt 0:00:06]} Qxb7 {[%emt 0:00:04]} 31. Rxd3 {[%emt 0:00:03]} c4 {[%emt 0:00:21]} 32. Rc3 {[%emt 0:00:25]} Rxa4 {[%emt 0:00:12]} 33. Rec1 {[%emt 0:00:13]} Qb5 {[%emt 0:06:46]} 34. Be3 {[%emt 0:11:46]} Ba3 {[%emt 0:00:24]} 35. Rd1 {[%emt 0:00:00]} Bb2 {[%emt 0:00:22]} 36. Rc2 {[%emt 0:00:00]} Qb3 {[%emt 0:30:47]} 37. Ne1 {[%emt 0:00:00]} Bc3 {[%emt 0:00:00]} 38. Rcc1 {[%emt 0:00:00]} Bb2 {[%emt 0:00:00]} 39. Rc2 {[%emt 0:00:00]} Ra1 {[%emt 0:00:00]} 40. Rxa1 {[%emt 0:00:00]} Bxa1 {[%emt 0:00:00]} 41. g3 {[%emt 0:00:00]} Bc3 {[%emt 0:00:00]} 42. Rc1 {[%emt 0:00:00]} Bb2 {[%emt 0:00:00]} 43. Rc2 {[%emt 0:00:00]} Kf8 {[%emt 0:00:00]} 44. h4 {[%emt 0:00:00]} Ke8 {[%emt 0:00:00]} 45. Kf1 {[%emt 0:00:00]} Kd7 {[%emt 0:00:00]} 46. Ke2 {[%emt 0:00:00]} Kc6 {[%emt 0:00:00]} 47. f3 {[%emt 0:02:54]} Kd5 {[%emt 0:00:00]} 48. Kf2 {[%emt 0:00:07]} Bxd4 {[%emt 0:00:00]} 49. Bxd4 {[%emt 0:00:28]} Kxd4 {[%emt 0:00:00]} 50. Re2 {[%emt 0:00:32]} c3 {[%emt 0:01:21]} 51. Re4+ {[%emt 0:00:07]} Kd5 {[%emt 0:00:31]} 52. Re2 {[%emt 0:00:41]} Qb6+ {[%emt 0:01:32]} 53. Kf1 {[%emt 0:00:04]} Kc4 {[%emt 0:00:38]} 54. Re4+ {[%emt 0:00:07]} Kb3 {[%emt 0:00:12]} 55. Re2 {[%emt 0:00:10]} Qb5 {[%emt 0:01:17]} 56. Kf2 {[%emt 0:00:13]} Qc5+ {[%emt 0:00:01]} 57. Kf1 {[%emt 0:00:34]} Qc4 {[%emt 0:00:13]} 58. Kf2 {[%emt 0:00:54]} Qd4+ {[%emt 0:00:12]} 59. Kf1 {[%emt 0:01:08]} h5 {[%emt 0:01:18]} 60. Nc2 {[%emt 0:02:40]} Qd1+ {[%emt 0:01:38]} 61. Ne1 {[%emt 0:00:04]} Qb1 {[%emt 0:01:30]} 62. Kf2 {[%emt 0:00:19]} Qf5 {[%emt 0:00:15]} 63. Kg2 {[%emt 0:00:58]} g5 {[%emt 0:00:14]} 64. hxg5 {[%emt 0:00:20]} Qxg5 {[%emt 0:00:07]} 65. Kf2 {[%emt 0:01:03]} Qf5 {[%emt 0:00:54]} 66. Kg2 {[%emt 0:00:08]} Qb1 {[%emt 0:00:14]} 67. Kf2 {[%emt 0:00:29]} Qd1 {[%emt 0:00:21]} 68. Kf1 {[%emt 0:00:46]} Kc4 {[%emt 0:01:07]} 69. Re4+ {[%emt 0:00:20]} Kc5 {[%emt 0:00:48]} 70. Re2 {[%emt 0:00:22]} Kc6 {[%emt 0:00:37]} 71. Kf2 {[%emt 0:00:57]} Qd4+ {[%emt 0:00:10]} 72. Kf1 {[%emt 0:00:04]} Qc4 {[%emt 0:00:49]} 73. Kf2 {[%emt 0:00:07]} Qc5+ {[%emt 0:00:04]} 74. Kf1 {[%emt 0:00:08]} h4 {[%emt 0:00:34]} 75. gxh4 {[%emt 0:00:25]} Qc4 {[%emt 0:00:04]} 76. h5 {[%emt 0:00:18]} Qh4 {[%emt 0:01:24]} 77. Re4 {[%emt 0:01:47]} Qxh5 {[%emt 0:00:21]} 78. Rc4+ {[%emt 0:00:49]} Kd5 {[%emt 0:00:05]} 79. Rxc3 {[%emt 0:00:08]} Qh1+ {[%emt 0:00:20]} 80. Kf2 {[%emt 0:00:44]} Qh4+ {[%emt 0:00:25]} 81. Kf1 {[%emt 0:00:44]} Kxe5 {[%emt 0:00:14]} 82. Re3+ {[%emt 0:00:14]} Kf5 {[%emt 0:00:15]} 83. Ng2 {[%emt 0:00:21]} Qg3 {[%emt 0:00:45]} 84. Rb3 {[%emt 0:00:17]} Kg6 {[%emt 0:00:32]} 85. Re3 {[%emt 0:00:27]} f6 {[%emt 0:00:47]} 86. Rxe6 {[%emt 0:01:40]} Qxf3+ {[%emt 0:00:07]} 87. Kg1 {[%emt 0:00:03]} Qd1+ {[%emt 0:00:17]} 88. Re1 {[%emt 0:00:06]} Qd4+ {[%emt 0:00:07]} 89. Kf1 {[%emt 0:00:50]} f5 {[%emt 0:00:18]} 90. Re2 {[%emt 0:01:16]} f4 {[%emt 0:00:30]} 91. Ne1 {[%emt 0:00:56]} Kf5 {[%emt 0:00:44]} 92. Rf2 {[%emt 0:00:27]} Qd1 {[%emt 0:00:29]} 93. Rg2 {[%emt 0:00:17]} Qh5 {[%emt 0:00:38]} 94. Rf2 {[%emt 0:00:13]} Qh1+ {[%emt 0:00:23]} 95. Ke2 {[%emt 0:00:03]} Ke4 {[%emt 0:00:21]} 96. Nf3 {[%emt 0:01:15]} Qh5 {[%emt 0:00:17]} 97. Rf1 {[%emt 0:00:03]} Qb5+ {[%emt 0:00:17]} 0-1

[Event "NY Presidents Day Schiller-C 2024"]
[Site "New York"]
[Date "2024.02.16"]
[Round "2.5"]
[White "Plat, Vojtech"]
[Black "Ho, Carter"]
[Result "1-0"]
[ECO "E46"]
[WhiteElo "2516"]
[BlackElo "2180"]
[Annotator "TA"]
[PlyCount "71"]
[EventDate "2024.02.14"]
[EventType "schev"]
[EventCountry "USA"]
[SourceTitle "playchess.com"]
[Source "ChessBase"]
[SourceQuality "1"]
[TimeControl "5400+30"]

{[%evp 14,71,-8,-27,-2,-29,-6,-8,-13,-29,-29,-29,-18,-20,-41,-42,20,31,17,0,-18,-30,3,-83,14,-41,-31,-45,0,0,0,-6,74,5,7,0,0,0,0,-5,0,-3,0,-6,0,0,42,50,33,30,361,361,477,458,461,477,489,481,443,429]} 1. d4 {[%emt 0:00:03]} Nf6 {[%emt 0:02:31]} 2. c4 {[%emt 0:00:06]} e6 {[%emt 0:00:24]} 3. Nc3 {[%emt 0:00:07]} Bb4 {[%emt 0:00:14]} 4. e3 {[%emt 0:00:06]} O-O {[%emt 0:00:30]} 5. Nge2 {[%emt 0:00:13]} d5 {[%emt 0:03:20]} 6. a3 {[%emt 0:00:05]} Be7 {[%emt 0:00:12]} 7. Nf4 {[%emt 0:01:03]} c6 {[%emt 0:01:26]} 8. Be2 {[%emt 0:00:05]} Nbd7 {[%emt 0:01:49]} 9. O-O {[%emt 0:00:07]} Re8 {[%emt 0:00:49]} 10. Qc2 {[%emt 0:00:31]} Bd6 {[%emt 0:07:05] The position is equal.} 11. b3 {[%emt 0:05:12]} dxc4 {[%emt 0:13:50]} 12. bxc4 {[%emt 0:03:06]} e5 {[%emt 0:04:15]} 13. Nd3 {[%emt 0:00:55]} exd4 {[%emt 0:04:12]} 14. exd4 {[%emt 0:00:04]} Ne4 {[%emt 0:02:28]} ({Better is} 14... Nf8 $15) 15. Nxe4 $11 {[%emt 0:06:59]} Rxe4 {[%emt 0:00:07]} 16. Be3 {[%emt 0:00:17]} Nf6 {[%emt 0:03:40]} 17. Ne5 {[%emt 0:04:03]} c5 {[%emt 0:06:55]} 18. Bd3 {[%emt 0:04:46]} (18. Nf3 $11) 18... Rh4 {[%emt 0:03:16]} (18... cxd4 $1 $17 19. Bxe4 dxe3) 19. f4 {[%emt 0:01:38]} ({White should try} 19. Bg5 $11 Rh5 20. h4) 19... cxd4 $15 {[%emt 0:16:10]} 20. Bxd4 {[%emt 0:00:42]} Ng4 {[%emt 0:02:01]} (20... Bxe5 {seems wilder.} 21. Bxe5 Ng4 22. Rad1 Qe7) 21. Nxg4 {[%emt 0:01:05]} Bxg4 {[%emt 0:00:17]} 22. Qc3 {[%emt 0:01:58][%cal Od3e4]} Rh5 {[%emt 0:06:19] [#]} (22... b6 $11 {keeps the balance.}) 23. Be4 {[%emt 0:01:10]} (23. Bxg7 $2 Bc5+ 24. Rf2 Qh4 (24... Bxf2+ $2 25. Kxf2 Qh4+ 26. Kf1 $19) 25. Bxh7+ Kxh7 26. Qc2+ Bf5 $19 (26... Kxg7 27. h3 Bxh3 28. Kf1 Bg4 29. Ke1 Rd8 30. g3 Qxg3 31. Qb2+ Kg8 32. Qg7+ Kxg7 33. Kf1 Qxf2#) (26... Kxg7 27. h3 Bxh3 28. Qc3+ Kh6 29. gxh3 Rg8+ 30. Kh1 Bxf2 31. Qh8+ Rxh8 32. Kg2 Bc5 33. Kf3 Qf2+ 34. Kg4 Rg8#)) ({White should play} 23. h3 $1 $16 {[%cal Rh3g4]} Be6 24. f5 (24. Bxg7 Bxh3 25. gxh3 Rxh3 $11)) 23... Bc5 $11 {[%emt 0:02:11]} 24. Bxc5 {[%emt 0:02:37]} Rxc5 {[%emt 0:00:13]} 25. Bxb7 {[%emt 0:03:52]} Rb8 {[%emt 0:01:06]} 26. Rab1 {[%emt 0:05:07][%cal Ba1b1,Bb1b2,Bb2d2,Bd2e2,Be2e3,Be3e5][%mdl 32]} Bf5 {[%emt 0:07:39]} 27. Rb2 {[%emt 0:02:12]} Be6 {[%emt 0:04:19] Prevents Bd5.} 28. Qe3 {[%emt 0:02:43]} Rxc4 {[%emt 0:02:48]} 29. f5 {[%emt 0:03:34]} Bc8 {[%emt 0:01:11][%cal Be6c8,Bc8a6,Ba6c4,Bc4d5][%mdl 32]} (29... Bd7 $5) 30. Rd2 $36 {[%emt 0:00:59][%mdl 2048] White is more active.} Qf8 {[%emt 0:01:06]} 31. Bd5 {[%emt 0:00:31]} Qc5 {[%emt 0:01:54][%mdl 8192] [#] Black cannot hold the game after this.} (31... Rc7 $1 $11) 32. Re2 $1 $18 {[%emt 0:00:45] White threatens Qxc5 and mate.} Ba6 {[%emt 0:01:10]} ({Wrong is} 32... Rc2 $2 33. Qxc5 Rxe2 34. Qc7 $18 (34. Qxa7 Rb7 $18) (34. Bxf7+ Kxf7 35. Qc4+ Kf8 $18) (34. Qxa7 Rb7 $18) (34. Bxf7+ Kxf7 35. Qc4+ Kf6 $18)) (32... Bd7 33. Bxc4) 33. Bxc4 {[%emt 0:00:07] White is clearly winning.} Qxe3+ {[%emt 0:00:04]} 34. Rxe3 {[%emt 0:00:02]} Bxc4 {[%emt 0:00:02]} 35. Rc1 {[%emt 0:00:09]} Bd5 {[%emt 0:00:16]} 36. Re5 {[%emt 0:00:23] Weighted Error Value: White=0.16 (very precise) /Black=0.38.  Loses game:     	---       	Black=1      Mistake:       	White=3     	Black=3      Inaccurate:     	White=2     	Black=4      OK:         	White=12    	Black=11     Best:        	White=1     	Black=1} 1-0

[Event "NY Presidents Day Schiller-C 2024"]
[Site "New York"]
[Date "2024.02.16"]
[Round "2.6"]
[White "Martin Del Campo Cardenas, Roberto Abel"]
[Black "Tang, Benjamin"]
[Result "0-1"]
[ECO "C07"]
[WhiteElo "2205"]
[BlackElo "2167"]
[Annotator "RC"]
[PlyCount "95"]
[EventDate "2024.02.14"]
[EventType "schev"]
[EventCountry "USA"]
[SourceTitle "playchess.com"]
[Source "ChessBase"]
[SourceQuality "1"]
[TimeControl "5400+30"]

1. e4 {[%emt 0:00:30]} e6 {[%emt 0:01:07]} 2. d4 {[%emt 0:00:00]} d5 {[%emt 0:00:05]} 3. Nd2 {[%emt 0:00:00]} c5 {[%emt 0:00:03]} 4. exd5 {[%emt 0:00:22]} Qxd5 {[%emt 0:00:34]} 5. Ngf3 {[%emt 0:00:08]} cxd4 {[%emt 0:00:05]} 6. Bc4 {[%emt 0:00:04]} Qd7 {[%emt 0:00:04]} 7. O-O {[%emt 0:00:12]} Nc6 {[%emt 0:00:09]} 8. Nb3 {[%emt 0:00:15]} a6 {[%emt 0:00:11]} 9. Re1 {[%emt 0:06:06]} Bb4 {[%emt 0:01:47]} 10. Re2 {[%emt 0:03:35]} b5 {[%emt 0:02:58]} 11. Bd3 {[%emt 0:00:38]} Bb7 {[%emt 0:07:25]} 12. Nbxd4 {[%emt 0:04:31]} Nxd4 {[%emt 0:03:30]} 13. Nxd4 {[%emt 0:00:14]} Nf6 {[%emt 0:00:09]} 14. c3 {[%emt 0:03:13]} Be7 {[%emt 0:03:45]} 15. Bf4 {[%emt 0:05:14]} O-O {[%emt 0:02:10]} 16. a3 {[%emt 0:09:14]} Rad8 {[%emt 0:04:52]} 17. Re1 {[%emt 0:04:29]} Bc5 {[%emt 0:09:56]} 18. Be5 {[%emt 0:09:26]} Qd5 {[%emt 0:02:01]} 19. Bf1 {[%emt 0:01:19]} Ne4 {[%emt 0:02:32]} 20. Bg3 {[%emt 0:09:44]} Nxg3 {[%emt 0:01:58]} 21. hxg3 {[%emt 0:00:07]} Bxd4 {[%emt 0:03:11]} 22. Qxd4 {[%emt 0:00:14]} Qxd4 {[%emt 0:00:05]} 23. cxd4 {[%emt 0:00:02]} Rxd4 {[%emt 0:00:05]} 24. Red1 {[%emt 0:01:50]} Rfd8 {[%emt 0:00:51]} 25. Rxd4 {[%emt 0:00:18]} Rxd4 {[%emt 0:00:06]} 26. Rc1 {[%emt 0:00:01]} Kf8 {[%emt 0:02:47]} 27. f3 {[%emt 0:01:30]} Bd5 {[%emt 0:06:56]} 28. b4 {[%emt 0:02:47]} Bc4 {[%emt 0:05:13]} 29. Bxc4 {[%emt 0:00:44]} Rxc4 {[%emt 0:01:05]} 30. Rxc4 {[%emt 0:03:22]} bxc4 {[%emt 0:00:11]} 31. Kf2 {[%emt 0:00:03]} Ke7 {[%emt 0:00:06]} 32. Ke3 {[%emt 0:01:25]} e5 {[%emt 0:00:06]} 33. g4 {[%emt 0:10:23]} f6 {[%emt 0:02:24]} 34. f4 {[%emt 0:00:59]} Kd6 {[%emt 0:01:27]} 35. Ke4 {[%emt 0:01:23]} exf4 {[%emt 0:01:44]} 36. Kd4 {[%emt 0:00:22]} f5 {[%emt 0:13:32]} 37. g5 {[%emt 0:01:57]} h5 {[%emt 0:00:05]} 38. gxh6 {[%emt 0:00:01]} gxh6 {[%emt 0:00:04]} 39. Kxc4 {[%emt 0:00:02]} f3 {[%emt 0:01:14]} 40. gxf3 {[%emt 0:00:12]} h5 {[%emt 0:00:04]} 41. Kd3 {[%emt 0:00:06]} Kd5 {[%emt 0:00:38]} 42. a4 {[%emt 0:07:34]} h4 {[%emt 0:00:06]} 43. Ke3 {[%emt 0:03:21]} Kc4 {[%emt 0:00:12]} 44. b5 {[%emt 0:06:03]} axb5 {[%emt 0:00:04]} 45. axb5 {[%emt 0:00:07]} Kxb5 {[%emt 0:00:02]} 46. Kf2 {[%emt 0:00:02]} Kc4 {[%emt 0:00:15]} 47. f4 {[%emt 0:00:56]} Kd4 {[%emt 0:00:27]} 48. Kf3 {[%emt 0:09:25]} 0-1

[Event "NY Presidents Day Schiller-C 2024"]
[Site "New York"]
[Date "2024.02.16"]
[Round "2.7"]
[White "Podavonov, Alisher"]
[Black "Meduri, Aakaash"]
[Result "1-0"]
[ECO "A91"]
[WhiteElo "2175"]
[BlackElo "1956"]
[Annotator "RC"]
[PlyCount "111"]
[EventDate "2024.02.14"]
[EventType "schev"]
[EventCountry "USA"]
[SourceTitle "playchess.com"]
[Source "ChessBase"]
[SourceQuality "1"]
[TimeControl "5400+30"]

1. d4 {[%emt 0:00:02]} f5 {[%emt 1:31:00]} 2. g3 {[%emt 1:31:28]} Nf6 {[%emt 0:00:23]} 3. Bg2 {[%emt 0:00:04]} e6 {[%emt 0:00:25]} 4. c4 {[%emt 0:00:06]} d5 {[%emt 0:00:41]} 5. Nh3 {[%emt 0:02:02]} c6 {[%emt 0:02:18]} 6. O-O {[%emt 0:00:13]} Be7 {[%emt 0:01:57]} 7. b3 {[%emt 0:00:58]} O-O {[%emt 0:02:07]} 8. Ba3 {[%emt 0:04:08]} Nbd7 {[%emt 0:06:01]} 9. Qc1 {[%emt 0:02:19]} Ne4 {[%emt 0:06:50]} 10. f3 {[%emt 0:09:51]} Nd6 {[%emt 0:01:10]} 11. Nd2 {[%emt 0:03:29]} Nf6 {[%emt 0:01:22]} 12. Nf2 {[%emt 0:06:59]} f4 {[%emt 0:03:48]} 13. gxf4 {[%emt 0:02:57]} Nf5 {[%emt 0:04:22]} 14. Bxe7 {[%emt 0:01:07]} Qxe7 {[%emt 0:00:13]} 15. Qc3 {[%emt 0:02:01]} c5 {[%emt 0:03:42]} 16. dxc5 {[%emt 0:03:34]} d4 {[%emt 0:00:20]} 17. Qb2 {[%emt 0:01:01]} Nh5 {[%emt 0:00:39]} 18. Nd3 {[%emt 0:02:03]} Rf6 {[%emt 0:03:37]} 19. Rf2 {[%emt 0:13:10]} Rh6 {[%emt 0:15:23]} 20. Bh3 {[%emt 0:11:54]} e5 {[%emt 0:01:13]} 21. fxe5 {[%emt 0:04:30]} Qh4 {[%emt 0:03:39]} 22. Bg4 {[%emt 0:07:56]} Bd7 {[%emt 0:05:52]} 23. Nf1 {[%emt 0:05:39]} Rf8 {[%emt 0:02:25]} 24. Rg2 {[%emt 0:01:43]} Rg6 {[%emt 0:01:36]} 25. Qd2 {[%emt 0:04:17]} Bc6 {[%emt 0:06:28]} 26. b4 {[%emt 0:01:48]} a6 {[%emt 0:06:19]} 27. a4 {[%emt 0:00:05]} Nh6 {[%emt 0:05:21]} 28. Bxh5 {[%emt 0:01:15]} Rxg2+ {[%emt 0:01:07]} 29. Kxg2 {[%emt 0:00:03]} Qxh5 {[%emt 0:01:36]} 30. Ng3 {[%emt 0:01:00]} Qh4 {[%emt 0:05:49]} 31. Nf2 {[%emt 0:04:03]} g5 {[%emt 0:06:07]} 32. b5 {[%emt 0:00:35]} Bd7 {[%emt 0:00:34]} 33. Rd1 {[%emt 0:05:38]} Rd8 {[%emt 0:00:25]} 34. Nfe4 {[%emt 0:00:00]} Bh3+ {[%emt 0:00:36]} 35. Kg1 {[%emt 0:00:00]} Nf7 {[%emt 0:00:10]} 36. Qb2 {[%emt 0:01:30]} Qf4 {[%emt 0:00:48]} 37. Nf6+ {[%emt 0:00:00]} Kh8 {[%emt 0:00:15]} 38. Qd2 {[%emt 0:00:00]} Qxe5 {[%emt 0:00:02]} 39. Nd5 {[%emt 0:00:00]} axb5 {[%emt 0:01:20]} 40. axb5 {[%emt 0:00:08]} Ra8 {[%emt 0:00:58]} 41. Qxd4 {[%emt 0:00:30]} Kg8 {[%emt 0:00:46]} 42. Qxe5 {[%emt 0:00:53]} Nxe5 {[%emt 0:00:02]} 43. Rc1 {[%emt 0:00:55]} Ra2 {[%emt 0:00:20]} 44. Rc3 {[%emt 0:00:46]} Kf7 {[%emt 0:01:42]} 45. Kf2 {[%emt 0:00:38]} h6 {[%emt 0:00:35]} 46. Re3 {[%emt 0:01:07]} Ke6 {[%emt 0:00:29]} 47. Nc7+ {[%emt 0:00:22]} Kf6 {[%emt 0:01:08]} 48. Nh5+ {[%emt 0:00:53]} Kg6 {[%emt 0:00:47]} 49. Rxe5 {[%emt 0:00:16]} Kxh5 {[%emt 0:00:02]} 50. Nd5 {[%emt 0:00:19]} Kh4 {[%emt 0:00:57]} 51. Re4+ {[%emt 0:00:50]} Kh5 {[%emt 0:00:19]} 52. Kg3 {[%emt 0:01:53]} Bf5 {[%emt 0:00:51]} 53. Re5 {[%emt 0:00:16]} Kg6 {[%emt 0:00:08]} 54. e4 {[%emt 0:01:02]} Bd7 {[%emt 0:00:28]} 55. Re7 {[%emt 0:00:07]} Bc8 {[%emt 0:00:09]} 56. Nb6 {[%emt 0:00:41]} 1-0

[Event "NY Presidents Day Schiller-C 2024"]
[Site "New York"]
[Date "2024.02.16"]
[Round "2.8"]
[White "Lapshun, Yury"]
[Black "Yoo, Eugene"]
[Result "1-0"]
[ECO "D26"]
[WhiteElo "2337"]
[BlackElo "2168"]
[Annotator "TA"]
[PlyCount "69"]
[EventDate "2024.02.14"]
[EventType "schev"]
[EventCountry "USA"]
[SourceTitle "playchess.com"]
[Source "ChessBase"]
[SourceQuality "1"]
[TimeControl "5400+30"]

{[%evp 10,69,25,10,8,8,23,20,18,31,22,1,14,21,100,99,108,102,93,79,72,75,88,71,96,77,213,204,213,112,122,121,114,118,118,119,118,117,113,118,116,114,114,113,131,127,128,128,160,151,151,151,144,130,176,176,176,176,176,176,179,177]} 1. d4 Nf6 2. Nf3 e6 3. c4 d5 4. e3 dxc4 5. Bxc4 a6 6. a4 b6 7. O-O Bb7 {Prevents e4} 8. Qe2 Nbd7 {The position is equal.} 9. Rd1 Bb4 10. Nbd2 Qe7 11. e4 e5 (11... O-O $11 {keeps the balance.}) 12. dxe5 (12. Nxe5 {seems wilder.} Nxe5 13. dxe5 Qxe5 14. Nf3) 12... Nxe5 13. Nxe5 Qxe5 {[#]} 14. Bxf7+ $1 Kxf7 15. Qc4+ Kg6 16. Qxb4 Rad8 {[%cal Of6g4]} 17. Re1 {And now Nf3 would win.} Rd3 (17... Rhe8 $16 {keeps fighting.}) 18. Nc4 $18 Qd4 {[%cal Of6g4] Strongly threatening ...Ng4!} 19. Bf4 (19. Be3 $1 $18 {[%cal Re3d4]} Qxe4 20. f3) 19... Ng4 $16 {[#]} 20. Ne5+ $1 {[%mdl 512]} Nxe5 21. Qxd4 Rxd4 22. Bxe5 Rxe4 23. Rxe4 Bxe4 24. Bxc7 {[%mdl 4096] Endgame. KRB-KRB} b5 25. axb5 axb5 26. f3 Bd5 {[#]} 27. Ra6+ $1 Kf7 {[#]} 28. Be5 $1 Rg8 29. Ra7+ Kg6 30. Kf2 {White is more active.} h5 31. h4 Kh6 (31... b4 $16 32. Ra5 Bf7 33. Ra6+ Kf5) 32. Bc3 $18 {White is clearly better.} Kg6 33. Kg3 Bf7 34. Rb7 Bc4 35. Rc7 {Weighted Error Value: White=0.08 (flawless) /Black=0.19 (very precise) .  Mistake:       	White=1     	Black=3      OK:         	White=15    	Black=7      Best:        	White=1     	Black=2      Strong:       	White=1     	---        Brilliant:      	White=1     	---} 1-0